Cogmind - Beta 16 @@@ ROGUE MODE // 2025.12.24 @ 20:14:29 Player: obl-vn Result: Destroyed self with Sigix Terminator Performance ------------- Evolutions (8) 4000 Regions Visited (21) 4200 Robots Destroyed (245) 1225 Value Destroyed (12599) 12599 Prototype IDs (50) 1000 Alien Tech Used (9) 1800 Bonus (16705) 16705 TOTAL SCORE: 41529 Bonus ------- High Alert Combat Kills 1097 Follower Combat Kills 3766 Forged Quantum Companion 2000 Registered with UFD 300 Met Optimus in HQ 500 Built Enhanced Grunts 300 Met R17 at Cetus 500 Found Hidden Lab 3000 Used Core Reset Matrix 3000 Met R17 at Research 2000 Scanned by Researcher 500 Friendly Fire -258 Cogmind --------- Core Integrity 0/1450 Matter 290/300 Energy 85/100 System Corruption 14% Temperature Cool (0) Movement Core (50) Location -2/Testing Parts ------- > --- POWER (2) -------- (None) > --- PROPULSION (8) --- (None) > --- UTILITY (10) ----- Advanced Signal Interpreter Advanced Terrain Scan Processor Deep Network Scanner Advanced Corruption Screen > --- WEAPON (4) ------- Superquantum Companion > --- INVENTORY (5) ---- Precision Energy Filter Potential Cannon Peak State ------------ > --- POWER ------------ Antimatter Reactor Light Particle Reactor > --- PROPULSION ------- Cargo Legs Heavy Armored Exoskeleton > --- UTILITY ---------- Advanced Power Amplifier Large Storage Unit Long-range Sensor Array Advanced Signal Interpreter Microactuators Improved Phase Shifter Centrium Medium Armor Plating Centrium Medium Armor Plating Experimental Powered Armor Medium Regenerative Plating Advanced Hardlight Generator Deep Network Scanner > --- WEAPON ----------- Core Stripper Companion Sword Molecular Scythe > --- INVENTORY -------- Thunder Leg Thunder Leg Biometal Leg Biometal Leg Biometal Leg Experimental Utility Shielding Centrium Medium Armor Plating Experimental Thermal Shield Advanced Force Field Phase Redirector Advanced Hacking Suite Advanced Hacking Suite Core Regenerator Potential Cannon [Rating: 200] Favorites ----------- Power Neutrino Core Engine Improved Ion Engine Power Core Neutrino Core Reactor Light Antimatter Reactor Propulsion Flexi-carbon Leg Treads Light Treads Leg Flexi-carbon Leg Wheel Armored Wheel Utility Large Storage Unit Device Improved Actuator Array Storage Large Storage Unit Processor Advanced Signal Interpreter Hackware Deep Network Scanner Protection Centrium Medium Armor Plating Artifact Phase Redirector Weapon Companion Sword Energy Cannon Subdweller Beam Cannon Ballistic Gun Heavy Battle Rifle Ballistic Cannon Battle Cannon Launcher Subdweller Shrapnel Launcher Special Weapon Voltaic Drivehammer Impact Weapon Heavy Mace Slashing Weapon Companion Sword Piercing Weapon Spear Build | -11 -10 -10 -9 -9 -6 -6 -6 -6 -5 -5 -5 -5 -5 -5 -4 -4 -4 -3 -3 -2 -2 ------- Run | Yrd Mat Sub Rec Scr Fac Low Low Zio Pro Fac Ext Cet Arc Hub Fac Arm Lab Res Qua Res Tes Slots Evolved 16 | . . . . . 8 . . . . 2 . . . . 2 . . 2 . 2 . Power 1 | . . . . . 1 . . . . . . . . . . . . . . . . Propulsion 5 | . . . . . 2 . . . . . . . . . 1 . . . . 2 . Utility 8 | . . . . . 5 . . . . 2 . . . . 1 . . . . . . Weapon 2 | . . . . . . . . . . . . . . . . . . 2 . . . Parts Attached 238 | 4 8 24 2 12 36 5 1 6 . 15 19 6 2 4 11 15 2 16 20 10 20 Power 40 | . 2 3 . 4 4 2 1 . . 2 7 . . . 1 2 . 3 4 . 5 Engine 18 | . 2 3 . 3 2 2 1 . . 2 2 . . . . . . . 1 . . Core 9 | . . . . 1 2 . . . . . 5 . . . 1 . . . . . . Reactor 13 | . . . . . . . . . . . . . . . . 2 . 3 3 . 5 Propulsion 70 | 2 1 4 1 . 13 1 . . . 5 8 3 1 . 6 6 . 5 5 3 6 Treads 8 | 2 1 2 . . 3 . . . . . . . . . . . . . . . . Leg 58 | . . . . . 9 1 . . . 5 8 3 1 . 6 6 . 5 5 3 6 Wheel 4 | . . 2 1 . 1 . . . . . . . . . . . . . . . . Hover . | . . . . . . . . . . . . . . . . . . . . . . Flight . | . . . . . . . . . . . . . . . . . . . . . . Utility 85 | . 3 5 . 3 15 . . 5 . 7 2 3 1 4 4 3 2 7 10 7 4 Device 34 | . 1 . . . 6 . . 2 . 5 1 1 . 1 1 . 1 6 6 1 2 Storage 2 | . 1 . . 1 . . . . . . . . . . . . . . . . . Processor 12 | . . . . . 4 . . 2 . 1 . 1 . . 1 . . . 1 1 1 Hackware 11 | . . . . . 2 . . . . . . . . 3 1 1 . 1 . 2 1 Protection 25 | . 1 5 . 2 3 . . 1 . 1 1 1 1 . 1 2 1 . 2 3 . Artifact 1 | . . . . . . . . . . . . . . . . . . . 1 . . Weapon 43 | 2 2 12 1 5 4 2 . 1 . 1 2 . . . . 4 . 1 1 . 5 Energy Gun . | . . . . . . . . . . . . . . . . . . . . . . Energy Cannon 12 | . . 8 . . 1 . . . . 1 . . . . . . . 1 . . 1 Ballistic Gun 7 | 2 . 1 1 2 . . . . . . . . . . . 1 . . . . . Ballistic Cannon 6 | . 2 2 . 1 . . . . . . . . . . . . . . . . 1 Launcher 5 | . . 1 . . . 1 . . . . . . . . . 1 . . . . 2 Special Weapon 3 | . . . . . 1 . . . . . 2 . . . . . . . . . . Impact Weapon 3 | . . . . 1 . 1 . . . . . . . . . . . . 1 . . Slashing Weapon 6 | . . . . 1 1 . . 1 . . . . . . . 2 . . . . 1 Piercing Weapon 1 | . . . . . 1 . . . . . . . . . . . . . . . . Special Melee Weapon . | . . . . . . . . . . . . . . . . . . . . . . Unidentified Prototypes 29 | . . . . . 1 1 . 3 . 1 . 3 1 1 . 2 2 3 5 1 5 Parts Lost 89 | . . 6 . . 7 4 1 . 2 2 6 . . . 3 1 . 4 20 6 27 Power 18 | . . . . . 3 2 1 . . . . . . . 1 . . 2 3 1 5 Propulsion 24 | . . 2 . . 1 1 . . . 1 2 . . . 1 . . 1 3 1 11 Utility 41 | . . 2 . . 3 1 . . 1 1 4 . . . 1 1 . 1 12 4 10 Weapon 6 | . . 2 . . . . . . 1 . . . . . . . . . 2 . 1 Highest Loss Streak 13 | . . 2 . . 2 2 1 . 2 2 5 . . . 2 1 . 1 8 3 13 To Critical Strikes 2 | . . . . . . . . . . . . . . . . . . . 2 . . Average Backups 10 | 2 6 5 3 9 10 10 11 11 10 10 11 12 14 12 12 13 12 12 12 9 8 Power . | . 1 . . . . . 1 1 1 . 1 1 1 1 . 1 1 . . . . Propulsion 2 | 1 1 1 1 1 2 4 3 2 2 3 3 4 4 4 4 4 3 3 3 1 1 Utility 3 | . 2 2 . 2 2 1 3 3 4 3 2 2 7 5 4 4 4 6 6 5 3 Weapon 2 | . 1 1 1 3 4 3 3 3 2 2 2 1 1 1 1 3 1 . 1 2 3 Tool/Special . | . . . . . . . . . . . . . . . . . . . . . . Unused Backups 56 | . . 4 . 12 5 1 . 1 . . 2 14 1 . 5 6 1 2 2 . . Power 8 | . . 1 . 2 . . . . . . . 2 . . . 2 . 1 . . . Propulsion 6 | . . . . . . . . . . . 2 2 . . . . . . 2 . . Utility 21 | . . 2 . 6 3 . . 1 . . . 6 1 . 1 . . 1 . . . Weapon 19 | . . 1 . 3 1 1 . . . . . 4 . . 4 4 1 . . . . Tool/Special 2 | . . . . 1 1 . . . . . . . . . . . . . . . . Average Slot Usage (%) 89 | . 95 91 84 90 91 92 99 99 92 91 92 93 94 93 95 99 97 85 74 62 69 Engine 5 | . 12 13 13 4 4 6 11 12 12 11 4 . . . . . . . 2 . . Core 3 | . . . . 9 7 . . . . . 5 11 11 11 9 5 . . . . . Reactor 1 | . . . . . . . . . . . . . . . . 4 10 8 4 3 6 Treads 7 | . 27 25 14 14 11 . . . . . . . . . . . . . . . . Leg 15 | . . . . . 12 28 31 31 31 26 26 27 27 27 30 30 30 23 10 18 20 Wheel 2 | . . 2 14 14 1 . . . . . . . . . . . . . . . . Device 9 | . 2 5 . . 14 18 18 17 11 11 16 19 11 10 10 10 10 13 17 1 2 Storage 6 | . 12 6 . 11 6 6 6 6 6 5 5 5 5 5 5 5 5 4 4 4 3 Processor 8 | . . . . . 13 12 12 12 12 16 13 12 16 16 17 16 15 9 6 9 8 Hackware 1 | . . . . . . . . . . . . . . . . . . 3 4 9 12 Protection 9 | . 10 8 14 12 4 5 6 5 6 7 7 5 11 11 12 18 17 12 11 10 5 Energy Cannon 1 | . . 9 5 . . . . . 3 1 . . . . . . . . . . . Ballistic Gun 2 | . 17 7 8 5 . . . . . . . . . . . . . . . . . Ballistic Cannon 3 | . 10 10 14 10 . . . . . . . . . . . . . . . . 3 Impact Weapon 1 | . . . . 5 . 4 5 3 . . . . . . . . . . 2 . . Slashing Weapon 5 | . . . . 1 11 6 6 8 7 7 9 9 5 11 9 6 9 8 7 4 4 Peak Build Rating 200 | 4 7 41 15 27 76 75 76 85 83 102 103 107 110 106 130 145 147 185 200 159 199 Average Rating 79 | 2 6 15 13 19 67 70 75 78 81 96 98 100 108 104 117 132 141 154 173 145 170 On Entrance 83 | . 4 7 13 15 27 73 75 76 83 79 100 98 106 106 103 130 145 139 167 134 147 Avg Prop Armor Cover (%) 8 | 26 26 4 3 8 7 . . . . 2 . . . . . . . . 15 . 18 Naked Turns . | . . . . . . . . . . . . . . . . . . . . . . Heaviest Build 127 | 3 19 77 36 46 71 62 66 71 75 93 89 94 94 91 101 101 101 127 119 61 102 Greatest Support 210 | 3 40 40 20 20 84 95 90 90 90 92 93 93 98 98 136 151 151 159 156 210 210 Greatest Overweight (x) 5 | . 4 4 2 3 5 . . . . 1 1 1 1 . . . . . 1 . . Average Overweight (x) . | . . . 1 2 1 . . . . . . . . . . . . . . . . Largest Inventory Capacity 15 | 5 8 8 5 15 15 15 15 15 15 15 15 15 15 15 15 15 15 15 15 15 15 Average Capacity 13 | 5 7 6 5 13 15 15 15 15 15 15 15 15 15 15 15 15 15 15 15 15 14 Most Carried 15 | 5 8 8 5 15 15 15 15 15 15 15 15 15 15 15 15 15 15 15 15 15 15 Average Carried 12 | 2 6 6 4 11 14 14 15 14 14 14 14 14 15 13 13 14 14 14 13 11 10 Final Capacity 15 | 5 8 5 5 15 15 15 15 15 15 15 15 15 15 15 15 15 15 15 15 15 5 Final Carried 15 | 4 8 3 5 15 15 15 15 15 14 15 15 15 15 13 15 15 15 11 13 9 3 Class Distribution -------------------- 36% | Mutant 20% | Gladiator 17% | Scavenger-Gladiator 4% | Hacker-Gladiator 4% | Hacker-Mutant Dominant Class ---------------- Mutant | -10/Materials Mutant | -10/Subcaves Mutant | -9/Recycling Mutant | -9/Scraptown Gladiator | -6/Factory Machinist-Gladiator | -6/Lower Caves Gladiator | -6/Lower Caves Gladiator | -6/Zion Mutant | -5/Proximity Caves Mutant | -5/Factory Gladiator | -5/Extension Commander-Gladiator | -5/Cetus Scavenger-Mutant | -5/Archives Scavenger-Gladiator | -5/Hub_04(d) Scavenger-Gladiator | -4/Factory Scavenger-Assassin | -4/Armory Scavenger-Gladiator | -4/Lab Hacker-Gladiator | -3/Research Scavenger-Gladiator | -3/Quarantine Hacker-Mutant | -2/Research Wizard-Mutant | -2/Testing Resources | -11 -10 -10 -9 -9 -6 -6 -6 -6 -5 -5 -5 -5 -5 -5 -4 -4 -4 -3 -3 -2 -2 ----------- Run | Yrd Mat Sub Rec Scr Fac Low Low Zio Pro Fac Ext Cet Arc Hub Fac Arm Lab Res Qua Res Tes Matter Collected 6152 | 110 568 898 113 120 325 268 115 40 211 238 633 316 58 101 200 498 . 515 295 56 474 Remotely . | . . . . . . . . . . . . . . . . . . . . . . Salvage Created 13287 | . 544 864 178 . 1311 366 220 . 95 530 1410 44 277 112 854 1191 . 261 2666 444 1920 Parts 589 | . 44 55 3 . 65 17 11 . 6 26 57 1 9 5 29 40 . 8 127 26 60 Haulers Intercepted 5 | . 1 . . . . . . . . . . . . 1 . . . 2 1 . . Recyclers Shooed 1 | . . . . . . . . . . . 1 . . . . . . . . . . Parts Field Recycled . | . . . . . . . . . . . . . . . . . . . . . . Retrieved Matter . | . . . . . . . . . . . . . . . . . . . . . . Parts Self-Destructed 41 | . . 12 . . . 17 7 . 5 . . . . . . . . . . . . Prevented . | . . . . . . . . . . . . . . . . . . . . . . Parts Restored . | . . . . . . . . . . . . . . . . . . . . . . Kills | -11 -10 -10 -9 -9 -6 -6 -6 -6 -5 -5 -5 -5 -5 -5 -4 -4 -4 -3 -3 -2 -2 ------- Run | Yrd Mat Sub Rec Scr Fac Low Low Zio Pro Fac Ext Cet Arc Hub Fac Arm Lab Res Qua Res Tes Combat Hostiles Destroyed 204 | . 16 24 3 . 16 6 9 . 9 7 16 1 2 . 10 21 . 1 32 7 24 Melee 98 | . . . . . 16 4 2 . . 7 12 . . . 7 6 . . 24 4 16 Guns 15 | . 11 4 . . . . . . . . . . . . . . . . . . . Cannons 39 | . 5 19 3 . . . . . 1 . 1 . . . . . . . 2 3 5 AOE 40 | . . . . . . 2 7 . 8 . 2 1 . . 3 11 . 1 4 . 1 Classes Destroyed 25 | . 5 2 . . 4 1 . . 1 . 2 . 1 . . 4 . 1 2 . 2 Worker 8 | . . . . . 3 . . . . . . . . 1 1 . . . 2 . 1 Builder 1 | . . . . . . . . . . . . . . . . . . . . . 1 Hauler 5 | . 1 . . . . . . . . . . . . 1 . . . 2 1 . . Recycler 11 | . 1 . . . 3 . . . . 1 4 . . . . . . . 2 . . Operator 7 | . . . . . . . . . . . . . 3 . . 1 . . 1 . 2 Drone 2 | . . . . . . . . . 2 . . . . . . . . . . . . Watcher 6 | . 1 . . . . . . . . . 2 . . . 1 1 . . . . 1 Swarmer 37 | . 8 1 . . 2 2 7 . 5 . 5 . . . . . . . 3 4 . Cutter 2 | . . . . . . . . . . . . . . . . 2 . . . . . Saboteur 1 | . . . . . . . . . . . . . . . . 1 . . . . . Grunt 63 | . 8 3 . . 3 3 1 . . 2 5 1 . . 6 7 . . 10 . 14 Duelist 2 | . . . . . 1 . . . . 1 . . . . . . . . . . . Researcher 3 | . . . . . . . . . . . . . . . . . . . 2 . 1 Sentry 22 | . . 1 3 . 4 1 1 . . . 3 . 2 . 3 2 . . . 2 . Demolisher 3 | . . . . . . . . . . . . . . . . 3 . . . . . Specialist 4 | . . . . . . . . . . . . . . . . 1 . . 3 . . Hunter 14 | . . . . . 1 . . . 2 . . . . . . 3 . . 6 . 2 Programmer 26 | . . . . . 5 . . . . 4 . . . . . 2 . . 9 . 6 Q-Series 1 | . . . . . . . . . . . . . . . . . . . . . 1 Behemoth 3 | . . . . . . . . . . . 1 . . . 1 . . . . 1 . Striker 1 | . . . . . . . . . . . . . . . . . . 1 . . . Alpha 7 1 | . . . . . . . . . . . . . . . . . . . 1 . . Protovariant Y 1 | . . . . . . . . . . . . . . . . . . . . . 1 Subdweller 19 | . . 19 . . . . . . . . . . . . . . . . . . . Samaritan 1 | . . . . . . 1 . . . . . . . . . . . . . . . Thug 1 | . . . . . . . . . . . 1 . . . . . . . . . . Savage 1 | . . . . . . . . . . . 1 . . . . . . . . . . Best Kill Streak 11 | . 3 3 2 . 7 3 5 . 7 3 7 1 2 1 4 5 . 1 10 5 11 Combat Bots Only 9 | . 3 3 2 . 3 3 5 . 7 3 4 1 1 . 4 5 . 1 9 5 8 Max Kills in Single Turn 5 | . 2 1 1 . 1 2 3 . 5 1 2 1 1 1 3 2 . 1 5 2 2 Gunslinging 1 | . 1 . . . . . . . . . . . . . . . . . . . . Exploded 5 | . . . . . . 2 3 . 5 . 1 1 . . 3 2 . 1 4 . 1 Melee 2 | . . . . . 1 1 1 . . 1 1 . . . 1 1 . . 2 2 2 Uniques/NPCs Destroyed . | . . . . . . . . . . . . . . . . . . . . . . Combat | -11 -10 -10 -9 -9 -6 -6 -6 -6 -5 -5 -5 -5 -5 -5 -4 -4 -4 -3 -3 -2 -2 -------- Run | Yrd Mat Sub Rec Scr Fac Low Low Zio Pro Fac Ext Cet Arc Hub Fac Arm Lab Res Qua Res Tes Hostile Shots Fired 2086 | . 80 109 14 . 195 55 44 . 33 71 152 . . 2 82 84 . 150 511 139 365 Missed 670 | . 29 27 2 . 54 24 18 . 17 22 43 . . 1 28 24 . 66 181 40 94 Deflected 17 | . . . . . . . . . . . . . . . . . . . 5 4 8 Hits 1416 | . 51 82 12 . 141 31 26 . 16 49 109 . . 1 54 60 . 84 330 99 271 Melee 30 | . . . . . 6 . . . . 3 . . . . . . . 21 . . . Projectile 1386 | . 51 82 12 . 135 31 26 . 16 46 109 . . 1 54 60 . 63 330 99 271 AOE 8 | . . . . . . . . . . . . . . . 1 7 . . . . . Critical Strikes 69 | . . 4 1 . 4 1 2 . . 1 3 . . . 2 2 . 2 32 1 14 Part Disruptions 4 | . . . . . 1 . . . . 1 . . . . . . . . 2 . . Damage Taken 29221 | . 488 1599 185 . 2195 512 416 . 284 859 2197 14 63 47 1559 1563 . 3135 5193 2420 6492 Core 4233 | . 83 91 15 . 294 65 40 . 38 109 334 . 10 . 149 117 . 464 836 295 1293 Absorbed by Shields 1492 | . . . . . . . . . . 197 78 . . . . . . 129 792 8 288 Redirected to Core 309 | . . . . . . . . . . . . . . . . . . . 309 . . Redirected to Shielding 160 | . . . . . . . . . . . . . . . . . . . 160 . . Ignored by Resistances 597 | . . . . . . . . . . 55 132 6 . . . 21 . . . 70 313 Regen/Repaired (Parts) 2086 | . 69 . . . 17 . . . . . . . . . . 214 75 178 462 215 856 Core Remaining (%) 53 | 100 . . . 24 . . . . 48 . . . . 54 . . 76 . 19 . . Volleys Fired 326 | . 57 150 17 . 2 2 5 . 32 5 4 2 2 . 1 25 . 4 1 . 17 Largest 3 | . 2 3 2 . 1 1 1 . 1 1 1 1 1 . 1 1 . 1 1 . 1 Hottest 200 | . 60 143 113 . 85 39 39 . 85 90 20 . . . . 39 . 200 200 . 150 Shots Fired 477 | . 114 237 23 . 2 2 5 . 32 5 4 2 2 . 1 25 . 4 1 . 18 Gun 130 | . 88 38 2 . . . . . . . . . . . . 2 . . . . . Cannon 296 | . 26 199 21 . 2 . . . 22 4 . . . . . . . 4 1 . 17 Launcher 37 | . . . . . . 2 5 . 10 . . . . . . 19 . . . . 1 Special 14 | . . . . . . . . . . 1 4 2 2 . 1 4 . . . . . Kinetic 263 | . 114 121 17 . . . . . . . . . . . . 2 . . . . 9 Thermal 165 | . . 116 6 . 2 . . . 22 4 1 . . . . . . 4 1 . 9 Explosive 36 | . . . . . . 2 5 . 10 . . . . . . 19 . . . . . Electromagnetic 11 | . . . . . . . . . . 1 2 1 2 . 1 4 . . . . . Robot Hit Streak 34 | . 8 18 34 . . . 3 . 4 . 3 4 5 . 6 5 . 2 3 . 6 Robot Miss Streak 3 | . 3 2 1 . . . 1 . 1 . . . . . . 1 . 1 . . 1 Penetration Max . | . . . . . . . . . . . . . . . . . . . . . . Secondary Targets 3 | . 3 . . . . . . . . . . . . . . . . . . . . Max Gunslinging Chain 1 | . 1 . . . . . . . . . . . . . . . . . . . . Autonomous 21 | . . . . . . . . . . . . . . . . . . . 7 5 9 Shots Hit Robots 683 | . 73 93 17 . 75 16 8 . 2 26 50 2 4 4 33 24 . 18 129 13 96 Core Hits 297 | . 29 34 6 . 24 10 12 . 12 9 25 2 . 3 18 29 . 3 44 11 26 Critical Kills 2 | . . 1 . . . . 1 . . . . . . . . . . . . . . Critical Parts Destroyed 3 | . 1 . . . . . . . . . . . . . 1 1 . . . . . Critical Strikes 37 | . 3 3 1 . 2 . 1 . . 1 2 . . . 4 1 . . 14 . 5 Meltdown 1 | . . 1 . . . . . . . . . . . . . . . . . . . Destroy 1 | . 1 . . . . . . . . . . . . . . . . . . . . Blast 6 | . 2 2 1 . . . . . . . . . . . . . . . . . 1 Smash 3 | . . . . . . . 1 . . . . . . . 1 1 . . . . . Sever 2 | . . . . . . . . . . 1 . . . . 1 . . . . . . Melee Attacks 877 | . . . . 26 133 35 11 . 10 52 62 1 3 8 50 53 18 63 179 33 140 Kinetic 3 | . . . . . . . . . . . . . . . . . . . 3 . . Impact 28 | . . . . 23 . 2 3 . . . . . . . . . . . . . . Slashing 837 | . . . . 3 133 24 8 . 10 52 62 1 3 8 50 53 18 63 176 33 140 Piercing 9 | . . . . . . 9 . . . . . . . . . . . . . . . Sneak Attacks 50 | . . . . . 13 1 . . . 3 6 1 3 3 2 . . 5 12 . 1 Combat Hostiles 1 | . . . . . . . . . . . . . . . . . . . 1 . . Follow-up Attacks 74 | . . . . . 11 5 2 . . 8 10 . . 1 6 5 . 6 15 1 4 Damage Inflicted 40714 | . 794 2162 410 . 3487 863 835 . 860 1372 2840 343 523 301 1960 3415 . 1612 8539 1185 9213 Guns 1147 | . 617 478 34 . . . . . . . . . . . . 18 . . . . . Cannons 5603 | . 175 1679 376 . . . . . 62 . . . . . . . . 306 706 454 1845 Explosions 8765 | . . . . . . 180 625 . 798 214 507 275 218 . 527 2680 . 436 315 . 1990 Melee 24977 | . . . . . 3486 683 210 . . 1158 2226 68 286 301 1406 656 . 870 7518 731 5378 Ramming 8 | . 2 5 . . 1 . . . . . . . . . . . . . . . . Kinetic 2968 | . 792 1113 245 . . . . . . . . . . . . 18 . . 219 . 581 Thermal 4974 | . . 1044 165 . . . . . 62 . . . . . . . . 742 435 . 2526 Explosive 2899 | . . . . . . 180 625 . 798 . . . . . 115 1181 . . . . . Electromagnetic 3125 | . . . . . . . . . . 214 507 275 218 . 412 1499 . . . . . Impact 313 | . . . . . . . 99 . . . 107 . 19 . 27 61 . . . . . Slashing 24492 | . . . . . 3486 516 111 . . 1158 2226 68 286 301 1406 656 . 870 7299 731 5378 Piercing 167 | . . . . . . 167 . . . . . . . . . . . . . . . Phasic 1768 | . . . . . . . . . . . . . . . . . . . 586 454 728 Highest Corruption 34 | . 1 1 1 . 2 . . . . 9 22 27 34 34 3 22 22 . 8 2 14 Average Corruption 9 | . 1 1 1 . 1 . . . . 7 18 22 32 34 3 11 22 . 2 1 6 Corruption Purged 2 | . . . . . 2 . . . . . . . . . . . . . . . . Corruption Blocked . | . . . . . . . . . . . . . . . . . . . . . . Effects 338 | . 11 22 2 . 14 . . . . 23 64 54 13 21 11 39 32 . 8 . 24 Message Errors 82 | . 3 2 . . 4 . . . . 8 14 13 3 4 2 10 10 . 4 . 5 Matter Fused 96 | . 2 9 . . 5 . . . . 4 15 18 5 6 5 10 3 . 2 . 12 Heat Flow Errors 47 | . 4 1 1 . 2 . . . . 1 14 5 3 2 2 4 6 . . . 2 Energy Discharges 33 | . 2 1 . . . . . . . 4 4 6 . 4 2 6 2 . 1 . 1 Parts Rejected 6 | . . . . . . . . . . 1 2 1 1 . . 1 . . . . . Parts Fused 2 | . . . . . . . . . . . . 2 . . . . . . . . . Data Loss (minor) 41 | . . 4 . . 1 . . . . 3 8 6 1 2 . 6 8 . 1 . 1 Data Loss (major) 14 | . . 2 1 . . . . . . 1 5 1 . 1 . . 1 . . . 2 Misfires 2 | . . 1 . . . . . . . . . . . . . . . . . . 1 Alerts 9 | . . 1 . . 2 . . . . 1 1 1 . 1 . . 2 . . . . Misdirections 5 | . . . . . . . . . . . 1 1 . 1 . 2 . . . . . Weapon Failures 1 | . . 1 . . . . . . . . . . . . . . . . . . . Overload Shots 8 | . . . . . . . . . . . . . . . . . . . . . 8 Overflow Damage 3882 | . . 23 . . 340 127 28 . 32 174 314 112 171 . 133 258 . 146 746 . 1278 Projectiles 646 | . . 23 . . . . . . . . . . . . 27 24 . 41 161 . 370 Explosions 1343 | . . . . . . 56 28 . 32 38 250 112 . . 106 234 . 37 66 . 384 Melee 1893 | . . . . . 340 71 . . . 136 64 . 171 . . . . 68 519 . 524 Knockbacks 12 | . 2 5 . . . . . . . . 1 . . . . . . . . . 4 Impact 1 | . . . . . . . . . . . 1 . . . . . . . . . . Kinetic 11 | . 2 5 . . . . . . . . . . . . . . . . . . 4 Secondary . | . . . . . . . . . . . . . . . . . . . . . . Self-Inflicted Damage 1233 | . . . . . . 80 55 . . . . . . . 37 46 . . 25 . 990 Shots 8 | . . . . . . 2 1 . . . . . . . 1 2 . . 1 . 1 Rammed 3 | . 1 2 . . . . . . . . . . . . . . . . . . . Targets Rammed 4 | . 1 2 . . 1 . . . . . . . . . . . . . . . . Kicked 1 | . . . . . 1 . . . . . . . . . . . . . . . . Crushed . | . . . . . . . . . . . . . . . . . . . . . . Highest Temperature 409 | . 261 307 180 . 262 3 18 . 160 137 276 209 263 237 243 409 252 81 48 . 389 Average Temperature 81 | . 48 41 95 . 89 2 8 . 60 55 96 73 111 106 112 116 95 42 26 . 133 Received Heat Transfer 5276 | . 171 743 72 . 375 132 84 . . 165 670 9 9 . 322 228 . . 304 223 1769 Effects 10 | . . . . . . . . . . . . . . . . 9 . . . . 1 Shutdowns 3 | . . . . . . . . . . . . . . . . 2 . . . . 1 Energy Bleed 1 | . . . . . . . . . . . . . . . . 1 . . . . . Interference 4 | . . . . . . . . . . . . . . . . 4 . . . . . Matter Decay 2 | . . . . . . . . . . . . . . . . 2 . . . . . Siege Activations . | . . . . . . . . . . . . . . . . . . . . . . Martial Activations . | . . . . . . . . . . . . . . . . . . . . . . Shielding Activations . | . . . . . . . . . . . . . . . . . . . . . . Robots Disrupted 3 | . . . . . . . . . . . 1 . . . 1 . . . 1 . . Combat Hostiles 3 | . . . . . . . . . . . 1 . . . 1 . . . 1 . . Robots Corrupted 7 | . . . . . . . . . . . 1 . 2 . . 4 . . . . . Combat Hostiles 7 | . . . . . . . . . . . 1 . 2 . . 4 . . . . . Parts Fried 34 | . . . . . . . . . . . 8 1 2 . 4 19 . . . . . Impact Corruptions 2 | . . . . . . . . . . . . . . . 1 1 . . . . . Robots Melted 1 | . . 1 . . . . . . . . . . . . . . . . . . . Combat Hostiles 1 | . . 1 . . . . . . . . . . . . . . . . . . . Parts Melted 9 | . . 7 . . . . . . . . . . . . . . . . . . 2 Heat Transferred 2902 | . . 1406 222 . . . . . 74 . . . . . . . . 580 370 . 250 Parts Sabotaged . | . . . . . . . . . . . . . . . . . . . . . . Parts Stolen . | . . . . . . . . . . . . . . . . . . . . . . Parts Stripped 34 | . . . . . . . . . . . . . . . . . . . 19 . 15 Power Chain Reactions . | . . . . . . . . . . . . . . . . . . . . . . Alert | -11 -10 -10 -9 -9 -6 -6 -6 -6 -5 -5 -5 -5 -5 -5 -4 -4 -4 -3 -3 -2 -2 ------- Run | Yrd Mat Sub Rec Scr Fac Low Low Zio Pro Fac Ext Cet Arc Hub Fac Arm Lab Res Qua Res Tes Maximum Alert Level 5 | . . . . . 1 . . . . 1 1 1 1 1 3 5 . . 2 1 1 Low Security (%) 76 | 100 100 . 100 . 90 . . . . 70 84 77 46 50 31 . . 100 55 94 99 Level 1 12 | . . . . . 9 . . . . 29 15 22 53 49 1 . . . 32 5 . Level 2 6 | . . . . . . . . . . . . . . . 43 49 . . 12 . . Level 3 2 | . . . . . . . . . . . . . . . 23 24 . . . . . Level 4 1 | . . . . . . . . . . . . . . . . 25 . . . . . Level 5 . | . . . . . . . . . . . . . . . . 1 . . . . . High Security . | . . . . . . . . . . . . . . . . . . . . . . Max Security . | . . . . . . . . . . . . . . . . . . . . . . Peak Influence 1634 | . 132 . 141 . 217 . . . . 372 241 373 288 328 940 1634 . 165 439 214 210 Initial 454 | . . . 40 . . . . . . 372 34 115 137 86 130 454 . . 92 206 115 Average 165 | . 49 . 48 . 81 . . . . 169 116 128 216 169 446 848 . 6 186 111 51 Influence Increases 10960 | . 463 155 318 . 643 332 215 . 170 534 1010 802 271 429 1262 1884 . 308 980 369 815 Destroy 0b10 Robot/C 5160 | . 320 100 60 . 360 180 180 . 140 140 580 320 80 120 500 740 . 20 680 140 500 Destroy 0b10 Robot/NC 315 | . 15 . 5 . 30 5 . . 10 5 40 10 20 30 60 20 . 10 30 . 25 Destroy Leader 900 | . 64 10 . . 110 20 20 . 20 30 54 40 . 26 124 174 . 4 102 40 62 Allied During Kill 1551 | . . . . . 7 7 . . . . 179 356 100 176 292 434 . . . . . Successful Hack 263 | . 16 . 11 . 54 . . . . 4 7 14 . 31 22 . . 15 53 . 36 Select Force Hacks 240 | . . . 240 . . . . . . . . . . . . . . . . . . Disable Machine 645 | . . . . . 15 . . . . 15 75 30 45 30 90 180 . 45 60 . 60 Destroy Structure 926 | . 3 . 2 . 37 . . . . 40 60 32 26 16 144 336 . 94 40 39 57 Advance Influence 300 | . . . . . . . . . . 300 . . . . . . . . . . . Partial Spotted 45 | . . . . . 15 . . . . . 15 . . . . . . . . . 15 Lose Combat Pursuer 615 | . 45 45 . . 15 120 15 . . . . . . . 30 . . 120 15 150 60 Influence Decreases 10794 | . 400 133 391 12 427 491 221 51 54 580 874 665 366 409 602 1178 1634 143 778 530 855 Entered New Map 3342 | . . 31 45 12 . 81 12 51 . 44 36 91 206 162 138 474 1634 . 73 161 91 Time Decay 5269 | . 400 102 205 . 334 350 199 . 34 416 537 382 120 180 374 434 . 123 515 163 401 Search Patrol Dispatched 100 | . . . . . . . . . . 100 . . . . . . . . . . . Lost Part 798 | . . . . . 70 40 10 . 20 20 60 . . . 30 10 . 20 190 60 268 Lost Ally 735 | . . . . . 23 20 . . . . 140 192 40 . 60 260 . . . . . Purge Threat 550 | . . . 141 . . . . . . . 101 . . 67 . . . . . 146 95 Squads Dispatched 59 | . 3 . . . 15 . . . . 4 2 . . . 7 6 . 6 9 2 5 Investigation 11 | . 2 . . . 3 . . . . 1 . . . . 3 . . 2 . . . Extermination 18 | . . . . . 6 . . . . 3 . . . . . 1 . . 4 1 3 Reinforcement 27 | . 1 . . . 6 . . . . . 2 . . . 3 3 . 4 5 1 2 Assault 3 | . . . . . . . . . . . . . . . 1 2 . . . . . Garrison . | . . . . . . . . . . . . . . . . . . . . . . Intercept . | . . . . . . . . . . . . . . . . . . . . . . Searches Triggered 1 | . . . . . . . . . . 1 . . . . . . . . . . . Construction Impeded 1 | . . . . . . . . . . . 1 . . . . . . . . . . Haulers Reinforced 3 | . . . . . 1 . . . . . . . . . . . . 2 . . . Active Scanning Responses . | . . . . . . . . . . . . . . . . . . . . . . Cargo Convoy Interrupts 1 | . . . . . 1 . . . . . . . . . . . . . . . . Stealth | -11 -10 -10 -9 -9 -6 -6 -6 -6 -5 -5 -5 -5 -5 -5 -4 -4 -4 -3 -3 -2 -2 --------- Run | Yrd Mat Sub Rec Scr Fac Low Low Zio Pro Fac Ext Cet Arc Hub Fac Arm Lab Res Qua Res Tes Distress Signals 32 | . 4 . . . 1 . . . . . 3 2 . 1 2 5 . 6 5 1 2 Communications Jammed 2 | . . . . . 2 . . . . . . . . . . . . . . . . Distress Signals 2 | . . . . . 2 . . . . . . . . . . . . . . . . Times Spotted 374 | . 32 30 3 1 25 14 10 . 6 8 28 6 3 7 31 49 . 29 42 17 33 Peak Tracking Total 10 | . 6 6 2 3 3 4 5 . 5 3 6 5 2 2 6 6 . 10 7 9 8 Tactical Retreats 21 | . 3 1 . . 1 3 1 . . . . . . . 1 . . 5 1 3 2 Traps | -11 -10 -10 -9 -9 -6 -6 -6 -6 -5 -5 -5 -5 -5 -5 -4 -4 -4 -3 -3 -2 -2 ------- Run | Yrd Mat Sub Rec Scr Fac Low Low Zio Pro Fac Ext Cet Arc Hub Fac Arm Lab Res Qua Res Tes Traps Triggered 14 | . 4 1 . . 1 . . . . 2 4 . . . . . . 1 . . 1 Indirectly . | . . . . . . . . . . . . . . . . . . . . . . Trap Hack Attempts . | . . . . . . . . . . . . . . . . . . . . . . Triggered . | . . . . . . . . . . . . . . . . . . . . . . Disarmed . | . . . . . . . . . . . . . . . . . . . . . . Reprogrammed . | . . . . . . . . . . . . . . . . . . . . . . Reused . | . . . . . . . . . . . . . . . . . . . . . . Traps Extracted . | . . . . . . . . . . . . . . . . . . . . . . Installed 2 | . . . . . . . 2 . . . . . . . . . . . . . . Triggered . | . . . . . . . . . . . . . . . . . . . . . . Machines | -11 -10 -10 -9 -9 -6 -6 -6 -6 -5 -5 -5 -5 -5 -5 -4 -4 -4 -3 -3 -2 -2 ---------- Run | Yrd Mat Sub Rec Scr Fac Low Low Zio Pro Fac Ext Cet Arc Hub Fac Arm Lab Res Qua Res Tes Machines Disabled 57 | . . 1 . 6 1 . . . . 1 7 4 3 2 7 12 2 3 4 . 4 Max in Single Turn 3 | . . 1 . 1 1 . . . . 1 1 1 1 1 2 2 1 3 1 . 1 Garrison Access 2 | . . . . . . . . . . . . . . . 1 . . . . . 1 Machines Repaired . | . . . . . . . . . . . . . . . . . . . . . . Machines Dismantled 6 | . . . . . . . . . . . 5 1 . . . . . . . . . Machines Sabotaged . | . . . . . . . . . . . . . . . . . . . . . . Overloaded Fab Kills . | . . . . . . . . . . . . . . . . . . . . . . Hacking | -11 -10 -10 -9 -9 -6 -6 -6 -6 -5 -5 -5 -5 -5 -5 -4 -4 -4 -3 -3 -2 -2 --------- Run | Yrd Mat Sub Rec Scr Fac Low Low Zio Pro Fac Ext Cet Arc Hub Fac Arm Lab Res Qua Res Tes Machines Accessed 77 | . 9 2 11 3 8 . . . . 4 7 2 . 2 7 3 . 3 8 1 7 Terminals 40 | . 6 . 3 . 2 . . . . 2 7 2 . 2 3 2 . . 6 1 4 Fabricators 5 | . . . . . 3 . . . . . . . . . 1 1 . . . . . Repair Stations 3 | . 1 . . . 1 . . . . . . . . . . . . . . . 1 Recycling Units 13 | . 2 . 8 . . . . . . 1 . . . . 2 . . . . . . Scanalyzers 8 | . . . . . 1 . . . . 1 . . . . . . . 3 2 . 1 Garrison Access 3 | . . . . . 1 . . . . . . . . . 1 . . . . . 1 Total Hacks 181 | . 24 4 21 8 23 . . . . 6 15 6 . 11 14 9 . 8 12 4 16 Successful 104 | . 18 4 12 8 16 . . . . 2 3 3 . 4 6 3 . 3 6 3 13 Failed 76 | . 6 . 9 . 7 . . . . 4 12 3 . 7 8 6 . 5 5 1 3 Catastrophic 15 | . 1 . 2 . 3 . . . . . 3 . . 1 3 2 . . . . . Database Lockouts 1 | . . . . . . . . . . . . . . . . . . . 1 . . Manual 68 | . 13 . 14 . 8 . . . . 1 2 1 . 11 9 4 . . 2 3 . Terminals 102 | . 15 . 13 . 6 . . . . 3 15 6 . 11 5 5 . . 10 4 9 Fabricators 20 | . . . . . 12 . . . . . . . . . 4 4 . . . . . Repair Stations 9 | . 5 . . . 2 . . . . . . . . . . . . . . . 2 Recycling Units 16 | . 4 . 8 . . . . . . 1 . . . . 3 . . . . . . Scanalyzers 18 | . . . . . 2 . . . . 2 . . . . . . . 8 2 . 4 Garrison Access 4 | . . . . . 1 . . . . . . . . . 2 . . . . . 1 Terminal Hacks 51 | . 3 4 4 8 3 . . . . 1 3 3 . 3 2 1 . . 6 3 7 Record 13 | . . 3 . 6 . . . . . . . 3 . . . . . . 1 . . Part Schematic 5 | . . . 1 . 1 . . . . . . . . 2 . . . . 1 . . Open Door 5 | . . . . 1 . . . . . 1 2 . . . . . . . 1 . . Level Access Points 1 | . . . . . . . . . . . . . . . . . . . 1 . . Branch Access Points 2 | . . . . . . . . . . . . . . . 1 . . . . 1 . Repair Station Index 1 | . . . . . . . . . . . . . . . . . . . . . 1 Alert Level 1 | . . . 1 . . . . . . . . . . . . . . . . . . Unreport Threat 6 | . . . 1 . . . . . . . 1 . . 1 . . . . . 1 2 Locate Traps 5 | . 2 . . . 1 . . . . . . . . . . . . . 1 . 1 Zone Layout 10 | . 1 . 1 . 1 . . . . . . . . . 1 1 . . 1 1 3 Proto ID Catalog 2 | . . 1 . 1 . . . . . . . . . . . . . . . . . Fabricator Hacks 10 | . . . . . 7 . . . . . . . . . 1 2 . . . . . Network Status 1 | . . . . . 1 . . . . . . . . . . . . . . . . Load Schematic 6 | . . . . . 4 . . . . . . . . . 1 1 . . . . . Build 3 | . . . . . 2 . . . . . . . . . . 1 . . . . . Repair Station Hacks 7 | . 3 . . . 2 . . . . . . . . . . . . . . . 2 Scan Component 4 | . 2 . . . 1 . . . . . . . . . . . . . . . 1 Repair 3 | . 1 . . . 1 . . . . . . . . . . . . . . . 1 Recycling Unit Hacks 1 | . 1 . . . . . . . . . . . . . . . . . . . . Retrieve Components 1 | . 1 . . . . . . . . . . . . . . . . . . . . Scanalyzer 7 | . . . . . 1 . . . . . . . . . . . . 3 . . 3 Insert Component 3 | . . . . . . . . . . . . . . . . . . 2 . . 1 Analyze 1 | . . . . . . . . . . . . . . . . . . . . . 1 Retrieve Study 3 | . . . . . 1 . . . . . . . . . . . . 1 . . 1 Garrison Access Hacks 2 | . . . . . . . . . . . . . . . 1 . . . . . 1 Seal Access 2 | . . . . . . . . . . . . . . . 1 . . . . . 1 Unauthorized Hacks 26 | . 11 . 8 . 3 . . . . 1 . . . 1 2 . . . . . . Terminals 11 | . 10 . . . . . . . . . . . . 1 . . . . . . . Track 2 | . 2 . . . . . . . . . . . . . . . . . . . . Botnet 2 | . 1 . . . . . . . . . . . . 1 . . . . . . . Disrupt 2 | . 2 . . . . . . . . . . . . . . . . . . . . Skim 5 | . 5 . . . . . . . . . . . . . . . . . . . . Fabricators 4 | . . . . . 3 . . . . . . . . . 1 . . . . . . Liberate 1 | . . . . . 1 . . . . . . . . . . . . . . . . Recompile 3 | . . . . . 2 . . . . . . . . . 1 . . . . . . Repair Stations . | . . . . . . . . . . . . . . . . . . . . . . Recycling Units 11 | . 1 . 8 . . . . . . 1 . . . . 1 . . . . . . Reject 1 | . 1 . . . . . . . . . . . . . . . . . . . . Tunnel 8 | . . . 8 . . . . . . . . . . . . . . . . . . Fedlink 2 | . . . . . . . . . . 1 . . . . 1 . . . . . . Scanalyzers . | . . . . . . . . . . . . . . . . . . . . . . Garrison Access . | . . . . . . . . . . . . . . . . . . . . . . Data Cores Recovered 2 | . . . . . . . . . . . . . . . . 1 . . . . 1 Used . | . . . . . . . . . . . . . . . . . . . . . . Hacking Detections 47 | . 6 . 3 . 6 . . . . 3 5 2 . 2 4 3 . 3 5 1 4 Full Trace Events 7 | . 2 . 1 . 1 . . . . . . . . . 1 . . 2 . . . Feedback Events 1 | . 1 . . . . . . . . . . . . . . . . . . . . Corruption 1 | . 1 . . . . . . . . . . . . . . . . . . . . Feedback Blocked . | . . . . . . . . . . . . . . . . . . . . . . Robot Schematics Acquired 1 | . . . . . . . . . . . . . . . . . . . 1 . . Robots Built . | . . . . . . . . . . . . . . . . . . . . . . Authchips . | . . . . . . . . . . . . . . . . . . . . . . Time . | . . . . . . . . . . . . . . . . . . . . . . Total Robot Build Rating . | . . . . . . . . . . . . . . . . . . . . . . Part Schematics Acquired 14 | . . . 1 . 1 . . . . . . . . 2 . . . . 8 . 2 Parts Built 5 | . . . . . 4 . . . . . . . . . . 1 . . . . . Authchips 3 | . . . . . 2 . . . . . . . . . . 1 . . . . . Time 266 | . . . . . 190 . . . . . . . . . . 76 . . . . . Total Part Build Rating 25 | . . . . . 20 . . . . . . . . . . 5 . . . . . Part Studies Acquired 3 | . . . . . 1 . . . . . . . . . . . . 1 . . 1 Parts Repaired 3 | . 1 . . . 1 . . . . . . . . . . . . . . . 1 Time 84 | . 26 . . . 22 . . . . . . . . . . . . . . . 36 Parts Recycled . | . . . . . . . . . . . . . . . . . . . . . . Recycled Matter . | . . . . . . . . . . . . . . . . . . . . . . Retrieved Matter . | . . . . . . . . . . . . . . . . . . . . . . Retrieved Components 9 | . 9 . . . . . . . . . . . . . . . . . . . . Parts Scanalyzed 2 | . . . . . . . . . . . . . . . . . . 1 . . 1 Part Schematics Acquired . | . . . . . . . . . . . . . . . . . . . . . . Parts Damaged . | . . . . . . . . . . . . . . . . . . . . . . Bothacking | -11 -10 -10 -9 -9 -6 -6 -6 -6 -5 -5 -5 -5 -5 -5 -4 -4 -4 -3 -3 -2 -2 ------------ Run | Yrd Mat Sub Rec Scr Fac Low Low Zio Pro Fac Ext Cet Arc Hub Fac Arm Lab Res Qua Res Tes Used RIF Installer . | . . . . . . . . . . . . . . . . . . . . . . Robots Hacked . | . . . . . . . . . . . . . . . . . . . . . . Non-combat . | . . . . . . . . . . . . . . . . . . . . . . Combat . | . . . . . . . . . . . . . . . . . . . . . . Robot Hacks Applied . | . . . . . . . . . . . . . . . . . . . . . . Relay Couplers Released 4 | . . . . . . . . . . . . . . . . . . . 4 . . Programmers 4 | . . . . . . . . . . . . . . . . . . . 4 . . Fabnet Peak Effective % . | . . . . . . . . . . . . . . . . . . . . . . Robots Rewired 12 | . . . . . . . . . . . 10 . . . . 2 . . . . . Allies Hacked . | . . . . . . . . . . . . . . . . . . . . . . Hacks Repelled . | . . . . . . . . . . . . . . . . . . . . . . Allies | -11 -10 -10 -9 -9 -6 -6 -6 -6 -5 -5 -5 -5 -5 -5 -4 -4 -4 -3 -3 -2 -2 -------- Run | Yrd Mat Sub Rec Scr Fac Low Low Zio Pro Fac Ext Cet Arc Hub Fac Arm Lab Res Qua Res Tes Total Allies 42 | . . . . 1 3 . . . . . 20 6 . . . 12 . . . . . Largest Group 13 | . . . . 1 3 . . . . . 11 13 7 5 5 13 . . . . . Highest-Rated Group 791 | . . . . 56 90 . . . . . 412 791 606 540 540 711 . . . . . Highest-Rated Ally 163 | . . . . 56 30 . . . . . 159 163 163 163 163 138 . . . . . Total Orders 21 | . . . . . . . . . . . 1 7 2 2 3 6 . . . . . STAY 6 | . . . . . . . . . . . 1 1 1 1 . 2 . . . . . ROAM 1 | . . . . . . . . . . . . 1 . . . . . . . . . FOLLOW 10 | . . . . . . . . . . . . 3 1 1 1 4 . . . . . AID 4 | . . . . . . . . . . . . 2 . . 2 . . . . . . Ally Attacks 534 | . . . . 5 6 5 . . . . 108 89 27 28 108 158 . . . . . Total Damage 16808 | . . . . 157 138 284 . . . . 1865 2875 1294 1038 4994 4163 . . . . . Kills 97 | . . . . 2 2 3 . . . . 17 17 3 10 25 18 . . . . . Allies Corrupted . | . . . . . . . . . . . . . . . . . . . . . . Allies Melted 7 | . . . . 7 . . . . . . . . . . . . . . . . . Turrets Deployed 1 | . . . . . . 1 . . . . . . . . . . . . . . . Intel | -11 -10 -10 -9 -9 -6 -6 -6 -6 -5 -5 -5 -5 -5 -5 -4 -4 -4 -3 -3 -2 -2 ------- Run | Yrd Mat Sub Rec Scr Fac Low Low Zio Pro Fac Ext Cet Arc Hub Fac Arm Lab Res Qua Res Tes Active Infowar (turns) 17248 | . 241 1426 . . 2847 747 645 956 715 1004 1619 1160 247 394 872 1073 790 1688 824 . . Optics 8648 | . . . . . . . . 2 . 1004 1619 1160 247 394 872 1073 790 1487 . . . Sensors 10984 | . . . . . 2510 713 622 956 715 . . . . 235 872 1059 790 1688 824 . . Seismic 1667 | . 241 1426 . . . . . . . . . . . . . . . . . . . Cloaking 270 | . . . . . . . . . . 270 . . . . . . . . . . . Jamming 4361 | . . . . . 2726 147 602 886 . . . . . . . . . . . . . Robot Analysis Total . | . . . . . . . . . . . . . . . . . . . . . . Derelict Logs Recovered 8 | . . 2 . 2 . 2 1 1 . . . . . . . . . . . . . Drone Launches . | . . . . . . . . . . . . . . . . . . . . . . Drone Recoveries . | . . . . . . . . . . . . . . . . . . . . . . Exploration | -11 -10 -10 -9 -9 -6 -6 -6 -6 -5 -5 -5 -5 -5 -5 -4 -4 -4 -3 -3 -2 -2 ------------- Run | Yrd Mat Sub Rec Scr Fac Low Low Zio Pro Fac Ext Cet Arc Hub Fac Arm Lab Res Qua Res Tes Turns Passed 28009 | 30 1301 3190 631 4438 2938 780 645 956 774 1004 1619 1160 247 394 872 1073 790 1797 1762 443 1165 Spaces Moved 16766 | 36 741 1626 466 2948 1500 593 525 834 448 717 888 584 95 293 554 627 328 1349 742 262 610 Core 198 | 36 161 . . . . . . . . . . . . . . . . . . . 1 Treads 2673 | . 580 1328 12 180 573 . . . . . . . . . . . . . . . . Legs 9987 | . . . . . 539 593 525 834 448 717 888 584 95 293 554 627 328 1349 742 262 609 Wheels 3908 | . . 298 454 2768 388 . . . . . . . . . . . . . . . . Hover . | . . . . . . . . . . . . . . . . . . . . . . Flight . | . . . . . . . . . . . . . . . . . . . . . . Fastest Speed 50 | 50 50 117 115 105 105 105 111 111 116 105 105 117 114 114 110 110 117 111 114 115 50 Average Speed 128 | 50 136 156 122 135 143 107 111 112 116 113 122 161 131 114 114 112 117 115 132 119 117 Slowest Speed 250 | 50 250 250 240 240 240 111 111 116 116 186 190 190 187 114 115 117 117 120 250 120 121 Overloaded Moves . | . . . . . . . . . . . . . . . . . . . . . . Propulsion Burnouts . | . . . . . . . . . . . . . . . . . . . . . . Robots Hopped . | . . . . . . . . . . . . . . . . . . . . . . Potential Cave-ins 11 | . . . . . . . . . . . 5 . . . . . . . . 6 . Cave-ins Triggered 1 | . . . . . . . . . . . . . . . . . . . . . 1 Teleports 1 | . . . . . . . . . . . . . . . . . . 1 . . . Exploration Rate (%) 59 | 3 92 88 68 91 25 69 60 83 68 16 73 85 87 20 16 46 95 59 92 12 54 Regions Visited 21 Branch Regions 15 Pre-discovered Areas 12 | . . 3 8 . . . . . . . . . . . 1 . . . . . . Known Exits Taken 16 | . . . . . 1 1 1 1 1 1 1 1 1 1 1 1 1 1 1 1 . Unknown Exits Taken 5 | 1 1 1 1 1 . . . . . . . . . . . . . . . . . Scrap Searched 37 | . . 12 . 11 . 6 2 4 2 . . . . . . . . . . . . Spaces Dug 213 | . . 25 1 4 36 5 3 . 19 14 2 . . . 6 28 . 28 9 18 15 Terrain Destroyed 693 | . . 35 1 4 37 38 63 . 115 19 26 12 7 . 38 192 . 50 19 18 19 Melee 173 | . . . . 4 35 5 3 . 8 12 2 . . . 6 28 . 28 9 18 15 Projectile 67 | . . 35 1 . 2 . . . 19 4 . . . . . 1 . 1 . . 4 AOE 453 | . . . . . . 33 60 . 88 3 24 12 7 . 32 163 . 21 10 . . Terrain Rammed . | . . . . . . . . . . . . . . . . . . . . . . Walls Destroyed . | . . . . . . . . . . . . . . . . . . . . . . Machines Disabled . | . . . . . . . . . . . . . . . . . . . . . . Actions | -11 -10 -10 -9 -9 -6 -6 -6 -6 -5 -5 -5 -5 -5 -5 -4 -4 -4 -3 -3 -2 -2 --------- Run | Yrd Mat Sub Rec Scr Fac Low Low Zio Pro Fac Ext Cet Arc Hub Fac Arm Lab Res Qua Res Tes Total 21701 | 47 920 2051 500 3362 2119 693 567 857 652 832 1298 796 207 344 732 888 714 1523 1356 351 892 Wait 2826 | . 94 176 11 315 413 49 21 . 158 25 181 139 101 34 101 122 353 64 368 34 67 Move 16746 | 35 740 1625 465 2947 1500 592 524 833 447 716 887 583 94 292 553 626 327 1348 741 261 610 Hop . | . . . . . . . . . . . . . . . . . . . . . . Pick Up 249 | 8 9 23 2 35 26 8 1 3 . 10 11 24 1 1 13 6 6 14 22 6 20 Fast Attach 80 | . 9 7 2 6 11 3 1 6 . 5 9 . 1 . 1 10 2 2 5 . . Attach 154 | 4 5 14 . 6 15 4 . 1 1 3 7 4 . 4 6 2 . 17 24 12 25 Detach 24 | . . . . . 1 . . . . . . 1 . 1 1 . . 4 8 4 4 Swap 170 | . 2 17 1 . 19 5 4 3 6 19 30 11 3 3 9 22 3 8 4 . 1 Drop 222 | . 3 27 2 30 21 6 1 11 . 10 18 23 2 3 7 20 9 16 9 2 2 Fire 326 | . 57 150 17 . 2 2 5 . 32 5 4 2 2 . 1 25 . 4 1 . 17 Melee 743 | . . . . 23 111 24 8 . 8 39 48 1 3 6 37 46 14 46 161 32 136 Ram . | . . . . . . . . . . . . . . . . . . . . . . Kick . | . . . . . . . . . . . . . . . . . . . . . . Crush 3 | . 1 2 . . . . . . . . . . . . . . . . . . . Escape Stasis 28 | . . . . . . . . . . . 5 . . . . . . . 13 . 10 Rewire 70 | . . . . . . . . . . . 58 . . . 3 9 . . . . . Trap 2 | . . . . . . . 2 . . . . . . . . . . . . . . Miscellaneous 58 | . . 10 . . . . . . . . 40 8 . . . . . . . . . Route ------- -11/Scrapyard -10/Materials (discovered 6 exits: [*Mat x3] / [*Min x2] / *Sub) -10/Subcaves (discovered 3 exits: [*Mat x2] / *Rec) -9/Recycling (discovered 2 exits: [*Fac] / *Scr) -9/Scraptown (discovered 2 exits: *Fac x2) -6/Factory (discovered 2 exits: *Fac / *Low) -6/Lower Caves -6/Lower Caves -6/Zion -5/Proximity Caves -5/Factory (discovered 7 exits: Fac x3 / *Upp x2 / *Ext x2) -5/Extension (discovered 2 exits: *Fac / *Cet) -5/Cetus (discovered 2 exits: *Fac / *Arc) -5/Archives (discovered 2 exits: *Fac / *Hub) -5/Hub_04(d) -4/Factory (discovered 3 exits: Upp x2 / *Arm) -4/Armory (discovered 2 exits: *Res / *Lab) -4/Lab -3/Research (discovered 4 exits: *Res x3 / *Qua) -3/Quarantine -2/Research (discovered 2 exits: *Tes x2) -2/Testing (discovered 1 exit: [*Acc]) History --------- Turn | Location | Event 10 | -11/Scrapyard | Discovered new exit (range 15) 31 | -11/Scrapyard | Entered Materials 52 | -10/Materials | Discovered new exit (range 8) 300 | -10/Materials | Build established: Mutant 351 | -10/Materials | Discovered new exit (range 14) 546 | -10/Materials | Discovered new exit (range 10) 575 | -10/Materials | Repaired Lgt. Treads 614 | -10/Materials | Discovered new exit (range 5) 916 | -10/Materials | Discovered new exit (range 16) 1050 | -10/Materials | Discovered new exit (range 11) 1097 | -10/Materials | Loaded intel: 13 trap records 1162 | -10/Materials | Learned 4 Subcaves zone layouts 1265 | -10/Materials | Learned 2 Mines zone layouts 1332 | -10/Materials | Entered Subcaves 1333 | -10/Subcaves | Approached by a straggling Scientist 2077 | -10/Subcaves | Shifting Twisted Machinery released Sub. Shrapnel Launcher 2078 | -10/Subcaves | Shifting Twisted Machinery released Flamer 2216 | -10/Subcaves | Shifting Twisted Machinery released Sub. Laser 2265 | -10/Subcaves | Learned Materials security intel 2421 | -10/Subcaves | Discovered new exit (range 9) 2680 | -10/Subcaves | Visited 4L-MR0's lab 2710 | -10/Subcaves | Found Tower Shield 2712 | -10/Subcaves | Attached Tower Shield, gained temporary slots: Power, Propulsion x2, Utility x2, Weapon x2 2919 | -10/Subcaves | Visited Clippyterm 2922 | -10/Subcaves | Learned location of Extension (-5) 2948 | -10/Subcaves | Ambushed by Subdweller buried in earth 3006 | -10/Subcaves | Build established: Gunner 3164 | -10/Subcaves | A swath of the cavern ceiling suddenly collapsed 3419 | -10/Subcaves | Core integrity fell below 50% 3436 | -10/Subcaves | Build established: Mutant 3594 | -10/Subcaves | Learned location of Zion (-6) 3594 | -10/Subcaves | Met a Zionite searching for "candidates" 3705 | -10/Subcaves | Discovered new exit (range 10) 4039 | -10/Subcaves | Shifting Twisted Machinery released Sub. Beam Cannon 4053 | -10/Subcaves | Shifting Twisted Machinery released Battle Cannon 4084 | -10/Subcaves | A Subdweller sparked back to life 4084 | -10/Subcaves | A Subdweller sparked back to life 4121 | -10/Subcaves | Found Cargo Legs 4512 | -10/Subcaves | Discovered new exit (range 5) 4522 | -10/Subcaves | Entered Recycling 4779 | -9/Recycling | Discovered new exit (range 8) 5123 | -9/Recycling | Scanned before Scraplab entrance 5140 | -9/Recycling | Entered Scraplab 5149 | -9/Recycling | Discovered new exit (range 3) 5153 | -9/Recycling | Entered Scraptown 5153 | -9/Scraptown | System corruption cleaned by C-Scrubber 5412 | -9/Scraptown | Heard Great Nut preacher, LISTEN AND RECITE! 5426 | -9/Scraptown | Discovered new exit (range 5) 5462 | -9/Scraptown | Scanned Subdweller tech in exchange for log data 5466 | -9/Scraptown | Learned Factory terminal intel 5557 | -9/Scraptown | Visited The Evicted 5575 | -9/Scraptown | Visited Supply Room 5597 | -9/Scraptown | Visited Fellowship of the Rings 5639 | -9/Scraptown | Visited Shadow of the Wyrm 5657 | -9/Scraptown | Visited Bundlers 5751 | -9/Scraptown | Visited UFD Registry 5751 | -9/Scraptown | Registered with UFD as "Nukeface" 5789 | -9/Scraptown | Build established: Derelict-Mutant 5796 | -9/Scraptown | Visited A0-MCA Data Center 5815 | -9/Scraptown | Visited Curators Association 5834 | -9/Scraptown | Visited Botcube Research 5864 | -9/Scraptown | Visited Science Guys 5898 | -9/Scraptown | Visited Derelict Rescue Squad 5947 | -9/Scraptown | Delivered Scrap Shield to a Scientist 6072 | -9/Scraptown | Visited Abandonware Association 6088 | -9/Scraptown | Learned abandonware demo "HACKBUD.EXE" 6088 | -9/Scraptown | Learned abandonware demo "REBOOT5.EXE" 6117 | -9/Scraptown | Visited Sword Containment 6129 | -9/Scraptown | Found Prototype Slashing Weapon 6157 | -9/Scraptown | Visited LU-1G1's Boring Crew 6251 | -9/Scraptown | Build established: Mutant 6305 | -9/Scraptown | Found Botcube 6394 | -9/Scraptown | Visited SPCMW 9041 | -9/Scraptown | Met Optimus 9041 | -9/Scraptown | Accepted into 0bPrime 9097 | -9/Scraptown | Botcube activated 9115 | -9/Scraptown | Botcube completed mutation into core form, armed with 1 gun, 1 cannon. 9441 | -9/Scraptown | Civil war broke out across Scraptown 9446 | -9/Scraptown | Found Deploy-a-Sentry 9508 | -9/Scraptown | Lost 3 allies 9517 | -9/Scraptown | Found Lrg. Botcube 9556 | -9/Scraptown | Found Prototype Special Weapon 9560 | -9/Scraptown | Identified Voltaic Drivehammer 9577 | -9/Scraptown | Discovered new exit (range 12) 9589 | -9/Scraptown | Lost 3 allies 9591 | -9/Scraptown | Entered Factory 9591 | -6/Factory | Evolved 8 slots: Power x1, Propulsion x2, Utility x5 9592 | -6/Factory | Loaded intel: 26 terminal locations 9638 | -6/Factory | Discovered new exit (range 14) 9712 | -6/Factory | Identified Companion Sword 9816 | -6/Factory | Identified exit to Factory 9987 | -6/Factory | Discovered new exit (range 8) 9997 | -6/Factory | Identified exit to Lower Caves 10429 | -6/Factory | Build established: Gladiator 11646 | -6/Factory | Cargo convoy interrupted 11791 | -6/Factory | Repaired Transmission Jammer? 11897 | -6/Factory | Fabricated Flexi-carbon Leg? 12049 | -6/Factory | Fabricated Flexi-carbon Leg (x2) 12529 | -6/Factory | Entered Lower Caves 12531 | -6/Lower Caves | UFD Scientist delivered a prototype 12534 | -6/Lower Caves | Found Prototype Protection 12717 | -6/Lower Caves | DAS Turret deployed 12724 | -6/Lower Caves | Learned Factory terminal intel 12758 | -6/Lower Caves | Learned location of 1 exit from Factory 12781 | -6/Lower Caves | Build established: Machinist-Gladiator 12906 | -6/Lower Caves | Found Alien Artifact 12906 | -6/Lower Caves | Identified Core Expander 12906 | -6/Lower Caves | Installed Core Expander, added new Propulsion slot 13015 | -6/Lower Caves | Attracted the attention of an 0b10 checkpoint 13084 | -6/Lower Caves | Encountered a Warlord checkpoint 13261 | -6/Lower Caves | Discovered new exit (range 15) 13307 | -6/Lower Caves | Identified exit to Lower Caves 13309 | -6/Lower Caves | Entered another Lower Caves area 13318 | -6/Lower Caves | Build established: Gladiator 13555 | -6/Lower Caves | Learned 12 Factory zone layouts 13712 | -6/Lower Caves | Attracted the attention of an 0b10 checkpoint 13917 | -6/Lower Caves | Discovered new exit (range 13) 13928 | -6/Lower Caves | Identified exit to Zion 13954 | -6/Lower Caves | Entered Zion 14017 | -6/Zion | Found Prototype Device 14017 | -6/Zion | Identified Bomb Factory No. 2 14067 | -6/Zion | Discovered new exit (range 15) 14694 | -6/Zion | Found Prototype Hackware 14702 | -6/Zion | Found Prototype Processor 14702 | -6/Zion | Identified Spectral Analyzer 14709 | -6/Zion | Found Spectral Analyzer 14845 | -6/Zion | Identified Enh. Scrap Shield 14908 | -6/Zion | Identified exit to Proximity Caves 14910 | -6/Zion | Entered Proximity Caves 14914 | -5/Proximity Caves | Spotter reported a threat 14914 | -5/Proximity Caves | Spotter reported a threat 15348 | -5/Proximity Caves | Build established: Mutant 15642 | -5/Proximity Caves | Core integrity fell below 50% 15665 | -5/Proximity Caves | Destroyed 7 combat bots 15677 | -5/Proximity Caves | Discovered exit to Factory (range 7) 15684 | -5/Proximity Caves | Entered Factory 15684 | -5/Factory | Evolved 2 slots: Utility x2 15685 | -5/Factory | Identified exit to Upper Caves 15685 | -5/Factory | Identified exit to Extension 15686 | -5/Factory | Identified exit to Factory 15688 | -5/Factory | Loaded intel: 28 terminal locations 15984 | -5/Factory | Search patrols dispatched 15995 | -5/Factory | Loaded intel: 8 recycling unit locations 16369 | -5/Factory | Build established: Gladiator 16688 | -5/Factory | Entered Extension 16781 | -5/Extension | System corruption reached 10% 16961 | -5/Extension | Rescued a captive Derelict 17038 | -5/Extension | Rescued a captive Derelict 17040 | -5/Extension | Rescued a captive Derelict 17150 | -5/Extension | Rescued a captive Derelict 17179 | -5/Extension | Spotted B-75 Beast 17232 | -5/Extension | Lost 3 allies 17288 | -5/Extension | Spotted B-75 Beast 17293 | -5/Extension | Allies destroyed B-75 Beast 17396 | -5/Extension | Lost 3 allies 17437 | -5/Extension | Destroyed B-75 Beast 17460 | -5/Extension | Lost 5 parts (2n3u) 17685 | -5/Extension | Rescued A7 17712 | -5/Extension | Rescued a captive Derelict 17719 | -5/Extension | Attached CPS modules to A7. 17784 | -5/Extension | Rescued a captive Derelict 17787 | -5/Extension | Rescued a captive Derelict 17819 | -5/Extension | Rescued a captive Derelict 17820 | -5/Extension | Rescued a captive Derelict 18261 | -5/Extension | Discovered exit to Factory (range 10) 18263 | -5/Extension | Discovered new exit (range 6) 18282 | -5/Extension | Identified exit to Cetus 18307 | -5/Extension | Entered Cetus 18307 | -5/Cetus | Accompanied by 11 allies (A7) 18312 | -5/Cetus | Acquired a Cetus Manufacturing Module code from A7 18324 | -5/Cetus | Spotted Cetus Guard 18325 | -5/Cetus | Spotted Cetus Guard 18334 | -5/Cetus | Allies destroyed Cetus Guard 18334 | -5/Cetus | Spotted Cetus Guard 18345 | -5/Cetus | Spotted Cetus Guard 18346 | -5/Cetus | Allies destroyed Cetus Guard 18360 | -5/Cetus | Allies destroyed Cetus Guard 18365 | -5/Cetus | Allies destroyed Cetus Guard 18394 | -5/Cetus | Lost 3 allies 18503 | -5/Cetus | Build established: Scavenger-Gladiator 18550 | -5/Cetus | Started Cetus Manufacturing Module 18575 | -5/Cetus | Manufactured an Enhanced Grunt 18600 | -5/Cetus | Manufactured an Enhanced Grunt 18625 | -5/Cetus | Manufactured an Enhanced Grunt 18650 | -5/Cetus | Manufactured an Enhanced Grunt 18675 | -5/Cetus | Manufactured an Enhanced Grunt 18903 | -5/Cetus | Build established: Commander-Gladiator 18951 | -5/Cetus | Discovered new exit (range 23) 19034 | -5/Cetus | Spotted Cetus Guard 19035 | -5/Cetus | Spotted Cetus Guard 19038 | -5/Cetus | Allies destroyed Cetus Guard 19038 | -5/Cetus | Spotted Cetus Guard 19047 | -5/Cetus | Allies destroyed Cetus Guard 19047 | -5/Cetus | Spotted Cetus Guard 19053 | -5/Cetus | Allies destroyed Cetus Guard 19056 | -5/Cetus | Allies destroyed Cetus Guard 19057 | -5/Cetus | Security sweep announced 19072 | -5/Cetus | Discovered exit to Factory (range 23) 19075 | -5/Cetus | Found Prototype Device 19082 | -5/Cetus | Lost 4 allies 19092 | -5/Cetus | Met Revision 17 19094 | -5/Cetus | Identified Exp. Thermal Shield 19329 | -5/Cetus | Lrg. Botcube activated 19361 | -5/Cetus | Lrg. Botcube completed mutation into treaded form, armed with 4 guns. 19363 | -5/Cetus | Extracted ID and sensor layout for unrecognized location from A7's data core 19375 | -5/Cetus | Found Prototype Protection 19378 | -5/Cetus | Identified Med. Regenerative Plating 19388 | -5/Cetus | Attached CPS modules to *Swift. 19458 | -5/Cetus | Identified exit to Archives 19467 | -5/Cetus | Entered Archives 19467 | -5/Archives | Accompanied by 7 allies 19491 | -5/Archives | System corruption reached 30% 19600 | -5/Archives | Discovered exit to Factory (range 15) 19611 | -5/Archives | Discovered new exit (range 15) 19675 | -5/Archives | Build established: Scavenger-Mutant 19690 | -5/Archives | Identified exit to Hub_04(d) 19714 | -5/Archives | Entered Hub_04(d) 19714 | -5/Hub_04(d) | Accompanied by 5 allies 19838 | -5/Hub_04(d) | Identified Exp. System Shield 20008 | -5/Hub_04(d) | Build established: Scavenger-Gladiator 20085 | -5/Hub_04(d) | Discovered exit to Factory (range 5) 20108 | -5/Hub_04(d) | Entered Factory 20108 | -4/Factory | Accompanied by 5 allies 20108 | -4/Factory | Evolved 2 slots: Propulsion x1, Utility x1 20663 | -4/Factory | Identified exit to Upper Caves 20663 | -4/Factory | Identified exit to Armory 20709 | -4/Factory | Loaded intel: 8 recycling unit locations 20709 | -4/Factory | Learned location of Protoforge (-2) 20764 | -4/Factory | Spotted B-86 Titan 20815 | -4/Factory | Destroyed B-86 Titan 20858 | -4/Factory | First assault squad dispatched 20980 | -4/Factory | Entered Armory 20980 | -4/Armory | Accompanied by 1 ally 20981 | -4/Armory | Met VL-GR5, who suggested a friendly competition 21015 | -4/Armory | Assisted by bots powering up and referring to "LRC-V3" 21285 | -4/Armory | Discovered new exit (range 9) 21345 | -4/Armory | Spotted B-86 Titan 21360 | -4/Armory | Allies destroyed B-86 Titan 21411 | -4/Armory | Lost 4 allies 21484 | -4/Armory | Identified exit to Research 21508 | -4/Armory | System corruption reached 10% 21671 | -4/Armory | Fabricated Exp. Utility Shielding (x1) 21748 | -4/Armory | Lost 8 allies 21815 | -4/Armory | Build established: Scavenger-Assassin 21980 | -4/Armory | First assault squad dispatched 22048 | -4/Armory | Discovered new exit (range 5) 22051 | -4/Armory | Identified exit to Lab 22053 | -4/Armory | Entered Lab 22053 | -4/Lab | Discovered exit to Research (range 9) 22066 | -4/Lab | Hidden lab's door opened automatically 22066 | -4/Lab | Sensor layout match revealed 22067 | -4/Lab | Gained access to the hidden lab's interior 22163 | -4/Lab | Found Prototype Energy Cannon 22178 | -4/Lab | Found Prototype Protection 22179 | -4/Lab | Identified Exp. Powered Armor 22362 | -4/Lab | Found Alien Artifact 22384 | -4/Lab | Found Alien Artifact 22384 | -4/Lab | Identified Integrated Dissipator 22384 | -4/Lab | Installed Integrated Dissipator, increased core heat dissipation (+20) 22402 | -4/Lab | Found Alien Artifact 22432 | -4/Lab | Build established: Scavenger-Gladiator 22665 | -4/Lab | Found Prototype Hackware 22838 | -4/Lab | Unable to decrypt terminal 22843 | -4/Lab | Entered Research 22843 | -3/Research | Evolved 2 slots: Weapon x2 23043 | -3/Research | Revision forces began assault on 0b10 23068 | -3/Research | Met up with Revision 17++ 23172 | -3/Research | Lost 3 allies 23205 | -3/Research | Identified Deep Network Scanner 23206 | -3/Research | Identified Core Regenerator 23543 | -3/Research | Research terminal network offline 23624 | -3/Research | Attached Cargo Legs, gained temporary slots: Utility x2 23657 | -3/Research | Discovered new exit (range 15) 23674 | -3/Research | Identified exit to Research 24045 | -3/Research | Build established: Hacker-Gladiator 24171 | -3/Research | Lost 3 allies 24218 | -3/Research | Discovered exit to Research (range 21) 24281 | -3/Research | Discovered exit to Research (range 6) 24347 | -3/Research | Spotted Striker 24355 | -3/Research | Spotted Striker 24363 | -3/Research | Identified Potential Cannon 24381 | -3/Research | Identified Transdimensional Reconstructor 24381 | -3/Research | Warped through subspace 24513 | -3/Research | Spotted Striker 24515 | -3/Research | Spotted Striker 24607 | -3/Research | Destroyed Striker 24624 | -3/Research | Spotted Executioner 24624 | -3/Research | Spotted Executioner 24635 | -3/Research | Discovered new exit (range 5) 24639 | -3/Research | Identified exit to Quarantine 24640 | -3/Research | Entered Quarantine 24722 | -3/Quarantine | Found Alien Artifact 24723 | -3/Quarantine | Identified Phase Redirector 24755 | -3/Quarantine | Found Alien Impact Weapon 24756 | -3/Quarantine | Identified Core Stripper 25217 | -3/Quarantine | Build established: Scavenger-Gladiator 25255 | -3/Quarantine | Central database locked down 25281 | -3/Quarantine | Spotted Alpha 7 25360 | -3/Quarantine | Found Alien Artifact 25360 | -3/Quarantine | Identified Subatomic Replicator 25514 | -3/Quarantine | Forged Quantum Companion 25526 | -3/Quarantine | Core integrity fell below 50% 25550 | -3/Quarantine | Lost 4 parts (4u) 25632 | -3/Quarantine | Scanned by Researcher 25660 | -3/Quarantine | Destroyed 9 combat bots 25826 | -3/Quarantine | Core integrity fell below 20% 25883 | -3/Quarantine | Lost 8 parts (1p1n6u) 25893 | -3/Quarantine | Destroyed 7 combat bots 25901 | -3/Quarantine | Found Alien Artifact 25902 | -3/Quarantine | Identified Core Reset Matrix 25902 | -3/Quarantine | Used Core Reset Matrix 25906 | -3/Quarantine | Detected hypermatrix surge 25906 | -3/Quarantine | Sensed 2 artifacts in vicinity 25934 | -3/Quarantine | Used Core Regenerator, restored core integrity (+325) 26008 | -3/Quarantine | Lost 4 parts (1p1n1u1w) 26023 | -3/Quarantine | Destroyed Alpha 7 26044 | -3/Quarantine | Found Sigix Terminator 26101 | -3/Quarantine | Discovered exit to Research (range 4) 26224 | -3/Quarantine | Build established: Hacker-Mutant 26402 | -3/Quarantine | Entered Research 26402 | -2/Research | Evolved 2 slots: Propulsion x2 26563 | -2/Research | Identified exit to Testing 26676 | -2/Research | Spotted B-90 Cyclops 26691 | -2/Research | Destroyed B-90 Cyclops 26729 | -2/Research | Spotted B-90 Cyclops 26819 | -2/Research | Lost 3 parts (3u) 26845 | -2/Research | Entered Testing 26882 | -2/Testing | Found Prototype Ballistic Cannon 26883 | -2/Testing | Identified Omega Cannon 27039 | -2/Testing | Found Prototype Launcher 27040 | -2/Testing | Identified Z-bomb Delivery System 27157 | -2/Testing | Build established: Wizard-Mutant 27241 | -2/Testing | Repaired Centrium Medium Armor Plating 27391 | -2/Testing | Lost 4 parts (1p1n2u) 27457 | -2/Testing | Found Prototype Energy Cannon 27460 | -2/Testing | Identified Cld. Nova Cannon 27501 | -2/Testing | Crushed by falling debris 27585 | -2/Testing | System corruption reached 10% 27774 | -2/Testing | Lost 4 parts (1p2n1u) 27805 | -2/Testing | Forged Prototype Slashing Weapon 27829 | -2/Testing | Lost 3 parts (2u1w) 27928 | -2/Testing | Spotted PY-VM5UBYP10W 27934 | -2/Testing | Discovered new exit (range 10) 27971 | -2/Testing | Core integrity fell below 50% 28000 | -2/Testing | Core integrity fell below 20% 28006 | -2/Testing | Destroyed 8 combat bots 28010 | -2/Testing | Fired Sigix Terminator 28010 | -2/Testing | Destroyed PY-VM5UBYP10W 28010 | -2/Testing | Destroyed self with Sigix Terminator Last Messages --------------- 27996_ Critical hit (Burn: +37). 27999_ K-01 Serf collects debris. 28000_ Destroyed Unknown Protection. 28001_ K-01 Serf collects debris. Superquantum Companion: "This will sting, but I promise it'll sting them more!" 28003_ Penetrated by Slug. 28003_ Slug penetrates Wall. 28003_ K-01 Serf collects debris. 28004_ CM&Z,EXI/YOHQRSFTDNTTBEXBT0L%0 28004_ K-01 Serf collects debris. 28005_ Wall collapses. 28007_ K-01 Serf collects debris. 28009_ Quantum Separator disabled. 28010_ Sigix Terminator expended. 28010_ Destroyed Prototype Energy Cannon. 28010_ PY-VM5UBYP10W destroyed. 28010_ Destroyed Unknown Wheel. 28010_ Destroyed Unknown Special Weapon. 28010_ U-05 Engineer destroyed. Map ----- +----------------------------------------------------+ | | | ?????????????????????????????????????????????????? | | ?????????????????????????????????????????????????? | | ?????????????????????????????????????????????????? | | ?????????????????????????????????????????????????? | | ?????????????????????????????????????????????????? | | ?????????????????????????????????????????????????? | | ?????????????????????????????????????????????????? | | ?????????????????????????????????????????????????? | | ?????????????????????????????????????????????????? | | ??????????????????????????????? ???????????????? | | ??????????????????????????????? #??????????????? | | ??????????????????????????????? #??????????????? | | ????????????????????????????""" #??????????????? | | ????????????????????????????""" #??????????????? | | ????????????????????????????""" #??????????????? | | ????????????????????????????? #??????????????? | | ????????????????????????????? #??????????????? | | ????????????????????????????? #??????????????? | | ????????????????????????????? k#????#?????????? | | ????????????????????????????? #??? #?????????? | | ???????????????????###???????!% ??? #?????????? | | ???????????????????###########+#### < #?????????? | | ????????????????????# %! [[%* #?????????? | | ?????????????????#### ku! *!![% #?????????? | | ???????????????# ; %]@ %!!!= +?????????? | | ?????????????????#### mk !|= #?????????? | | ????????????????????# =%############# #?????????? | | ?????????????????#### !=#= #?# #?????????? | | ????######+##########[ !#| $$ #?# +?????????? | | %=*= [!+%! %$= #?# #?????????? | | !![ !#= !%=!### #?????????? | | """"""" """"""" u # %/=[ #?????????? | | ????"""""" """"""" # |#= #?????????? | | ??????"""" """""" # # #?????????? | | ?????? # + #?????????? | | ??????"""" """"""" ############# #?????????? | | ?????""""" """"""" #???????????# #?????????? | | ?????""""" """"""" #??????????## #####?????? | | ????? #????####### #?????? | | ????? #????# % " #?????? | | ?????###+###### #????# ##### #?????? | | ????? #???# #??###"###### #####?????? | | ????? """ #???# #??# [ #?# #?????????? | | ????? """ #???# #??#! ! #?# #?????????? | | #???? """ ##### #### % #?# #?????????? | | #???? + / =#?# #?????????? | | #????"" ##########"######## ! #?# ?????????? | | #????"" #?# = ##??????# #??##?????????? | | #????" #?# "#??????########?????????????? | +----------------------------------------------------+ Best States ------------- Heat Dissipation 85 Energy Generation 49 Energy Capacity 530 Matter Stores 300 Matter Capacity 300 Sight Range 24 Robot Scan Range 18 Terrain Scan Density 210 Jamming Range 14 Cloak Strength 2 Power Amplification 30 EM Shielding 3 Corruption Containment 8 Corruption Block 18 Armor Coverage 2000 Resistance: TH 30 Resistance: EM 20 Core Shielding 20 Utility Shielding 90 Melee Speed Boost 20 Phase Shifting 10 Evasion (%) 80 Melee Accuracy 8 Core Analysis 6 Armor Integrity Analysis 30 Recoil Reduction 3 Energy Filtering 50 Offensive Hacking 53 Defensive Hacking 16 Authchip Count 2 Item Schematics ----------------- Adv. Quantum Shading Machine | -2/Testing | Archive Exp. Terrain Scan Processor | -2/Testing | Archive Robot Schematics ------------------ None Fabricated ------------ Flexi-carbon Leg | x2 | -6/Factory | Authchip Flexi-carbon Leg | x2 | -6/Factory | Authchip Exp. Utility Shielding | x1 | -4/Armory | Authchip Repaired ---------- Lgt. Treads | 50% | -10/Materials Transmission Jammer | 15% | -6/Factory Centrium Medium Armor Plating | 1% | -2/Testing Studied --------- Hvy. Armored Exoskeleton | -2/Testing | Hacked Alien Tech Used ----------------- Core Expander Integrated Dissipator Transdimensional Reconstructor Phase Redirector Core Stripper Subatomic Replicator Core Reset Matrix Core Regenerator Sigix Terminator Achievements -------------- Alien Roots Ambidextrous Anyone Home? Betrayal Most Foul Drive-By Frankenstein Friends Forever Generalissimo Network Effect Physics Protects Prison Break Project G-00 Revising The Future Revolutionary Research Survival Of The Most Covered Suspicious Tailor-made Thor Uncivil War Watch This! Challenges ------------ None Game ------ Seed SwarmSuperchargedGreatsword Manual? 0 Play Time 05:48:36 Cumulative 77.3 hours Start 2025.12.24 @ 12:44:59 End 2025.12.24 @ 20:14:29 Sessions 1 Manual Loads 0 Difficulty Rogue Special Mode None Game No. 59 Rogue 59 Adventurer 0 Explorer 0 Win Type - Total 1 Types 0/0/0/1/0/0/0/0/0/0 Lore% 38 Gallery% 46 Achievement% 41 Wizard Run 0 Options --------- Layout 1 ASCII 0 Keyboard 0 Movement Mouse Keybinds 0 Fullscreen 1 Font 32/SmallcapsGlow Map View 50x35 Zoom Use 0% Tactical HUD 1 Map Filters NONE Filters NONE Steam 1 RUN: c7fab9b7-b849-42b8-8556-9450b39b1431